bitfinex/quotes_BTCUSD_20240718
["timestamp","ask_amount","ask_price","bid_price","bid_amount"]
[1721328879769,0.001,63614.0,63613.0,0.96338374]
[1721328879991,0.00833,63615.0,63614.0,0.157198]
[1721328880210,0.00833,63615.0,63614.0,0.31157974]
[1721328880651,0.01239583,63615.0,63614.0,0.31157974]
[1721328881124,0.01239583,63615.0,63614.0,0.157198]
[1721328881348,0.30679083,63615.0,63614.0,0.002]
[1721328881636,0.62118183,63615.0,63614.0,0.002]
[1721328882035,0.93557283,63615.0,63614.0,0.002]
[1721328882496,1.24996383,63615.0,63614.0,0.002]
[1721328882728,1.56435483,63615.0,63614.0,0.002]
[1721328882978,0.786175,63599.0,63598.0,0.4726]
[1721328883207,0.923375,63599.0,63598.0,0.4726]
[1721328883430,0.61292928,63599.0,63598.0,0.4726]
[1721328883648,0.61292928,63599.0,63585.0,0.314536]
[1721328883649,0.0616,63597.0,63585.0,0.314536]
[1721328883870,0.157253,63592.0,63587.0,0.157264]
[1721328884088,0.157253,63592.0,63588.0,0.15438174]
[1721328884365,0.314495,63594.0,63588.0,0.15438174]
[1721328884366,0.16124224,63591.0,63588.0,0.15438174]
[1721328884634,0.00398724,63591.0,63588.0,0.15438174]
[1721328885100,0.00398724,63591.0,63589.0,0.157259]
[1721328885320,0.00398724,63591.0,63589.0,0.31164074]
[1721328885559,0.15725,63593.0,63589.0,0.31164074]
[1721328886006,0.157255,63591.0,63589.0,0.15438174]
[1721328886447,0.157256,63591.0,63589.0,0.15438174]
[1721328886664,0.157251,63593.0,63589.0,0.15438174]
[1721328887153,0.314496,63594.0,63589.0,0.16138174]
[1721328887154,0.157253,63592.0,63589.0,0.16138174]
[1721328887797,0.157253,63592.0,63589.0,0.16438174]
[1721328888035,0.314507,63592.0,63589.0,0.16438174]
[1721328888252,0.157256,63591.0,63589.0,0.15438174]
[1721328888469,0.301957,63590.0,63589.0,0.16038174]
[1721328888702,0.930985,63590.0,63589.0,0.011]
[1721328888922,0.616471,63590.0,63589.0,0.011]
[1721328889140,0.616471,63590.0,63589.0,0.006]
[1721328889369,0.616471,63590.0,63589.0,0.013]
[1721328889837,0.1447,63590.0,63589.0,0.006]
[1721328890072,0.0634,63596.0,63589.0,0.16038174]
[1721328890297,0.0634,63596.0,63595.0,0.471735]
[1721328890517,0.0634,63596.0,63595.0,0.157245]
[1721328890997,0.0634,63596.0,63595.0,0.471735]
[1721328890998,0.06708833,63596.0,63595.0,0.471735]
[1721328891376,0.00368833,63596.0,63595.0,0.62611674]
[1721328891596,0.00368833,63596.0,63595.0,0.62811674]
[1721328891806,0.0822,63598.0,63597.0,0.15724]
[1721328892050,0.08589333,63598.0,63597.0,0.15438174]
[1721328892247,0.08589333,63598.0,63595.0,0.006]
[1721328892248,0.157242,63596.0,63595.0,0.006]
[1721328892482,0.0822,63598.0,63595.0,0.006]
[1721328892724,0.00369334,63596.0,63595.0,0.163244]
[1721328892859,0.157242,63596.0,63595.0,0.006]
[1721328893068,0.16093534,63596.0,63595.0,0.006]
[1721328893292,0.38237834,63596.0,63590.0,0.157256]
[1721328893512,0.157258,63590.0,63585.0,0.157267]
[1721328893719,0.157258,63590.0,63586.0,0.15438174]
[1721328893928,0.00368482,63589.0,63586.0,0.15438174]
[1721328894135,0.234663,63588.0,63586.0,0.15438174]
[1721328894351,0.0774,63588.0,63586.0,0.15438174]
[1721328894562,0.00367982,63587.0,63586.0,0.15438174]
[1721328894699,0.06457982,63587.0,63586.0,0.15438174]
[1721328895345,0.06457982,63587.0,63586.0,0.31864874]
[1721328895554,0.06457982,63587.0,63586.0,0.16138174]
[1721328895820,0.06457982,63587.0,63586.0,0.007]
[1721328895821,0.22184382,63587.0,63586.0,0.007]
[1721328896048,0.85090182,63587.0,63586.0,0.007]
[1721328896265,0.85090182,63587.0,63586.0,0.015]
[1721328896488,0.85090182,63587.0,63586.0,0.008]
[1721328896947,0.85090182,63587.0,63586.0,0.016]
[1721328897188,0.85090182,63587.0,63586.0,0.008]
[1721328897433,1.16543082,63587.0,63586.0,0.008]
[1721328897648,1.16543082,63587.0,63586.0,0.016]
[1721328898094,0.85090182,63587.0,63586.0,0.016]
[1721328898331,0.85090182,63587.0,63586.0,0.008]
[1721328898575,0.85090182,63587.0,63586.0,0.009]
[1721328898797,0.85090182,63587.0,63586.0,0.001]
[1721328899026,0.85090182,63587.0,63586.0,0.002]
[1721328899467,0.06457982,63587.0,63586.0,0.002]
[1721328900582,0.53637282,63587.0,63586.0,0.002]
[1721328900817,0.85090182,63587.0,63586.0,0.002]
[1721328901465,0.22184382,63587.0,63586.0,0.002]
[1721328901676,0.53637282,63587.0,63586.0,0.002]
[1721328901893,0.06457982,63587.0,63586.0,0.31364874]
[1721328902104,0.06457982,63587.0,63586.0,0.15638174]
[1721328902334,0.0609,63587.0,63586.0,0.31364874]
[1721328902572,0.06459484,63587.0,63586.0,0.15638174]
[1721328902816,0.06459484,63587.0,63586.0,0.62718274]
[1721328903028,0.06459484,63587.0,63586.0,0.62618274]
[1721328903261,0.0609,63587.0,63586.0,0.63118274]
[1721328903515,0.0638,63591.0,63590.0,0.471771]
[1721328903721,0.0638,63591.0,63590.0,0.157257]
[1721328903975,0.314477,63598.0,63597.0,0.157238]
[1721328903976,0.0638,63598.0,63597.0,0.157238]
[1721328904195,0.1443,63606.0,63604.0,0.157221]
[1721328904409,0.1443,63606.0,63592.0,0.4726]
[1721328904640,0.002794,63600.0,63597.0,0.314476]
[1721328904877,0.002794,63600.0,63598.0,0.157237]
[1721328905091,0.314447,63604.0,63597.0,0.314476]
[1721328905092,0.160018,63604.0,63599.0,0.157233]
[1721328905334,0.157224,63604.0,63599.0,0.157233]
[1721328905549,0.314443,63605.0,63595.0,0.314487]
[1721328905824,0.1443,63606.0,63601.0,0.15723]
[1721328905825,0.002794,63602.0,63601.0,0.15723]
[1721328906043,0.002794,63605.0,63596.0,0.15438174]
[1721328906292,0.160015,63605.0,63601.0,0.157229]
[1721328906709,0.157221,63605.0,63601.0,0.157229]
[1721328906918,0.157221,63605.0,63596.0,0.15438174]
[1721328906919,0.157228,63602.0,63598.0,0.157237]
[1721328907133,0.157233,63600.0,63597.0,0.001]
[1721328907341,0.157231,63601.0,63597.0,0.157239]
[1721328907771,0.157245,63595.0,63593.0,0.04941722]
[1721328907982,0.15724,63597.0,63594.0,0.15438174]
[1721328908185,0.157239,63598.0,63597.0,0.002]
[1721328908391,0.314468,63600.0,63597.0,0.002]
[1721328908597,0.157235,63599.0,63597.0,0.002]
[1721328909222,0.083,63601.0,63597.0,0.15924]
[1721328909223,0.24023,63601.0,63597.0,0.15924]
[1721328909434,0.24023,63601.0,63597.0,0.15724]
[1721328909649,0.083,63601.0,63598.0,0.157237]
[1721328909892,0.0652,63602.0,63601.0,0.15723]
[1721328910102,0.0652,63602.0,63600.0,0.157231]
[1721328910820,0.160028,63600.0,63595.0,0.157244]
[1721328911030,0.157237,63599.0,63598.0,0.003]
[1721328911440,0.31446,63601.0,63598.0,0.003]
[1721328911441,0.160027,63600.0,63598.0,0.003]
[1721328911650,0.157233,63600.0,63598.0,0.003]
[1721328911812,0.002794,63599.0,63598.0,0.003]
[1721328912020,0.157231,63601.0,63598.0,0.005]
[1721328912221,0.00372907,63599.0,63598.0,0.005]
[1721328912429,0.157233,63600.0,63598.0,0.003]
[1721328912639,0.00372907,63599.0,63598.0,0.003]
[1721328912843,0.00372907,63599.0,63598.0,0.002]
[1721328913119,0.00372907,63599.0,63598.0,0.159237]
[1721328913363,0.00372907,63599.0,63598.0,0.002]
[1721328913581,0.00372907,63599.0,63598.0,0.006]
[1721328913782,0.157234,63600.0,63598.0,0.006]
[1721328913984,0.00372907,63599.0,63598.0,0.006]
[1721328914387,0.00372907,63599.0,63598.0,0.01]
[1721328914827,0.00372907,63599.0,63598.0,0.006]
[1721328915367,0.00372907,63599.0,63598.0,0.012]
[1721328915625,0.00372907,63599.0,63598.0,0.006]
[1721328915965,0.002794,63601.0,63598.0,0.01]
[1721328916262,0.00372907,63599.0,63598.0,0.01]
[1721328916485,0.0652,63602.0,63601.0,0.15723]
[1721328916733,0.236821,63605.0,63601.0,0.15723]
[1721328916941,0.002794,63604.0,63599.0,0.157233]
[1721328917208,0.157226,63603.0,63599.0,0.157233]
[1721328917645,0.157228,63602.0,63598.0,0.006]
[1721328917884,0.002794,63601.0,63598.0,0.157236]
[1721328918086,0.002794,63602.0,63598.0,0.157236]
[1721328918544,0.471705,63599.0,63598.0,0.004]
[1721328918790,0.532405,63599.0,63598.0,0.004]
[1721328919002,0.0607,63599.0,63594.0,0.157245]
[1721328919207,0.217935,63599.0,63595.0,0.157244]
[1721328919416,0.217935,63599.0,63598.0,0.002]
[1721328919631,0.0607,63599.0,63598.0,0.002]
[1721328919842,0.157228,63602.0,63598.0,0.157237]
[1721328920066,0.002794,63601.0,63598.0,0.157237]
[1721328920274,0.002794,63601.0,63599.0,0.158235]
[1721328920480,0.002794,63601.0,63600.0,0.471697]
[1721328920712,0.314438,63606.0,63600.0,0.471697]
[1721328920713,0.157222,63605.0,63600.0,0.471697]
[1721328920970,0.157222,63605.0,63599.0,0.001]
[1721328920971,0.002794,63604.0,63603.0,0.471675]
[1721328921185,0.14413,63614.0,63609.0,0.314417]
[1721328921413,0.14413,63614.0,63610.0,0.157207]
[1721328921414,0.301328,63614.0,63610.0,0.157207]
[1721328921627,0.002794,63613.0,63610.0,0.157207]
[1721328921833,0.301328,63614.0,63610.0,0.157207]
[1721328922042,0.002794,63613.0,63611.0,0.157205]
[1721328922287,0.002794,63613.0,63610.0,0.314414]
[1721328922500,0.002794,63613.0,63612.0,0.157203]
[1721328922727,0.00083,63614.0,63613.0,0.1572]
[1721328923380,0.00083,63614.0,63613.0,0.471601]
[1721328924467,0.00083,63614.0,63613.0,0.472601]
[1721328924700,0.00083,63614.0,63613.0,0.471601]
[1721328925450,0.00083,63614.0,63613.0,0.477601]
[1721328925667,0.00083,63614.0,63613.0,0.471601]
[1721328926109,0.00083,63614.0,63613.0,0.479601]
[1721328926786,0.00083,63614.0,63613.0,0.008]
[1721328927008,0.00457737,63614.0,63613.0,0.008]
[1721328927243,0.00083,63613.0,63612.0,0.157202]
[1721328927518,0.00083,63613.0,63611.0,0.15438174]
[1721328927519,0.13673,63613.0,63611.0,0.15438174]
[1721328927753,0.13673,63613.0,63612.0,0.157203]
[1721328927971,0.13673,63613.0,63595.0,0.05]
[1721328927972,0.314416,63610.0,63601.0,0.5216163]
[1721328928192,0.0601,63605.0,63601.0,0.5216163]
[1721328928426,0.233023,63604.0,63601.0,0.5216163]
[1721328928641,0.16002,63603.0,63601.0,0.4726]
[1721328928865,0.786137,63602.0,63601.0,0.4726]
[1721328929136,0.471682,63602.0,63601.0,0.4726]
[1721328929562,0.390248,63604.0,63601.0,0.4726]
[1721328929563,0.547473,63604.0,63601.0,0.4726]
[1721328929778,0.002794,63603.0,63601.0,0.4726]
[1721328930044,0.157225,63603.0,63601.0,0.4726]
[1721328930258,0.157225,63603.0,63601.0,0.4786]
[1721328930486,0.157227,63602.0,63601.0,0.4786]
[1721328930720,0.157227,63602.0,63601.0,0.4726]
[1721328930946,0.390248,63604.0,63601.0,0.4746]
[1721328930947,0.157225,63603.0,63601.0,0.4746]
[1721328931166,0.157225,63603.0,63601.0,0.4726]
[1721328931387,0.160021,63602.0,63601.0,0.4726]
[1721328931628,0.160021,63602.0,63601.0,0.4806]
[1721328931629,0.471682,63602.0,63601.0,0.4806]
[1721328931857,0.471682,63602.0,63601.0,0.008]
[1721328932313,0.471682,63602.0,63601.0,0.003]
[1721328932560,0.471682,63602.0,63601.0,0.007]
[1721328933007,0.157227,63602.0,63601.0,0.003]
[1721328933455,0.471682,63602.0,63601.0,0.008]
[1721328933669,0.786137,63602.0,63601.0,0.008]
[1721328933915,0.786137,63602.0,63601.0,0.005]
[1721328934141,1.164992,63602.0,63601.0,0.005]
[1721328934361,1.164992,63602.0,63601.0,0.009]
[1721328934579,0.536082,63602.0,63601.0,0.009]
[1721328934817,0.536082,63602.0,63601.0,0.004]
[1721328935042,0.157233,63600.0,63596.0,0.157242]
[1721328935306,0.002794,63599.0,63596.0,0.157242]
[1721328935983,0.002794,63599.0,63598.0,0.314475]
[1721328936219,0.002794,63601.0,63600.0,0.157232]
[1721328936602,0.00652053,63601.0,63600.0,0.157232]
[1721328936894,0.00372653,63601.0,63600.0,0.157232]
[1721328937233,0.00372653,63601.0,63597.0,0.15438174]
[1721328937434,0.002794,63600.0,63599.0,0.157234]
[1721328937932,0.00651838,63600.0,63599.0,0.157234]
[1721328938133,0.00372438,63600.0,63599.0,0.157234]
[1721328938504,0.00372438,63600.0,63598.0,0.157237]
[1721328938675,0.00372438,63600.0,63599.0,0.157235]
[1721328938872,0.002794,63601.0,63600.0,0.157232]
[1721328939288,0.002794,63601.0,63600.0,0.471697]
[1721328939552,0.065,63605.0,63601.0,0.157228]
[1721328939739,0.002794,63604.0,63601.0,0.157228]
[1721328939945,0.002794,63604.0,63602.0,0.15438174]
[1721328940130,0.002794,63608.0,63605.0,0.157219]
[1721328940360,0.002794,63608.0,63606.0,0.157217]
[1721328940936,0.002794,63608.0,63605.0,0.15722]
[1721328941722,0.002794,63608.0,63606.0,0.004]
[1721328941964,0.002794,63608.0,63606.0,0.157216]
[1721328942201,0.002794,63608.0,63607.0,0.157215]
[1721328942441,0.00083,63613.0,63607.0,0.157215]
[1721328942442,0.00083,63613.0,63607.0,0.46881174]
[1721328942668,0.002794,63612.0,63610.0,0.157207]
[1721328942981,0.002794,63612.0,63611.0,0.471616]
[1721328943352,0.00083,63613.0,63612.0,0.157203]
[1721328943832,0.00083,63613.0,63612.0,0.94039674]
[1721328944082,0.00083,63613.0,63612.0,1.31940274]
[1721328944565,0.00083,63613.0,63612.0,1.73190874]
[1721328945543,0.00083,63613.0,63612.0,1.41750274]
[1721328945789,0.00083,63613.0,63612.0,1.43150274]
[1721328946933,0.00083,63613.0,63612.0,1.41750274]
[1721328947388,0.00083,63613.0,63612.0,1.43150274]
[1721328947835,0.00083,63613.0,63612.0,1.41750274]
[1721328948067,0.00083,63613.0,63612.0,1.43150274]
[1721328948754,0.00083,63613.0,63612.0,1.38090274]
[1721328948981,0.00083,63613.0,63612.0,1.30580274]
[1721328951089,0.00083,63613.0,63612.0,0.96839674]
[1721328951530,0.00083,63613.0,63612.0,0.499609]
[1721328951746,0.00572402,63613.0,63612.0,0.499609]
[1721328951989,0.00572402,63613.0,63612.0,0.814015]
[1721328952395,0.00083,63613.0,63612.0,0.814015]
[1721328952651,0.00083,63613.0,63612.0,1.30580274]
[1721328954058,0.00083,63613.0,63612.0,1.38910274]
[1721328954487,0.00083,63613.0,63612.0,1.39743274]
[1721328958797,0.00083,63613.0,63612.0,1.31413274]
[1721328959266,0.00083,63613.0,63612.0,0.99972674]
[1721328959488,0.00083,63613.0,63612.0,0.97672674]
[1721328960458,0.14663,63613.0,63612.0,0.66232074]
[1721328960702,0.14663,63613.0,63612.0,0.507939]
[1721328960941,0.1515135,63613.0,63612.0,0.507939]
[1721328961678,0.0057135,63613.0,63612.0,0.822345]
[1721328962159,0.00083,63613.0,63612.0,0.822345]
[1721328962402,0.00083,63613.0,63612.0,1.29113274]
[1721328962855,0.00083,63613.0,63612.0,1.31413274]
[1721328963348,0.00083,63613.0,63612.0,0.99972674]
[1721328963796,0.00083,63613.0,63612.0,1.31413274]
[1721328966253,0.00083,63613.0,63612.0,0.99972674]
[1721328966933,0.00083,63613.0,63612.0,1.31413274]
[1721328968010,0.00083,63613.0,63612.0,0.99972674]
[1721328968941,0.00083,63613.0,63612.0,1.31413274]
[1721328970502,0.00083,63613.0,63612.0,0.99972674]
[1721328970934,0.00083,63613.0,63612.0,0.34791474]
[1721328971172,0.30033,63613.0,63612.0,0.028]
[1721328971389,0.61881481,63613.0,63612.0,0.028]
[1721328971841,1.24761681,63613.0,63612.0,0.028]
[1721328972062,1.29395973,63613.0,63612.0,0.014]
[1721328972309,0.314426,63608.0,63602.0,0.157225]
[1721328972528,0.302309,63607.0,63603.0,0.157224]
[1721328972751,0.30635382,63607.0,63603.0,0.157224]
[1721328972986,0.0665,63605.0,63599.0,0.36364047]
[1721328973213,0.16301361,63607.0,63599.0,0.04917247]
[1721328973214,0.223732,63600.0,63599.0,0.04917247]
[1721328973438,0.15724,63597.0,63593.0,0.062979]
[1721328973734,0.15724,63597.0,63575.0,0.0775]
[1721328973735,0.069294,63596.0,63588.0,0.000913]
[1721328973954,0.471778,63589.0,63588.0,0.000913]
[1721328974183,0.23669799,63589.0,63588.0,0.000913]
[1721328974646,0.55121699,63589.0,63588.0,0.000913]
[1721328975124,0.23669799,63589.0,63588.0,0.000913]
[1721328975347,0.23669799,63589.0,63588.0,0.16029474]
[1721328975348,0.00343899,63589.0,63588.0,0.16029474]
[1721328975568,0.001,63597.0,63588.0,0.16029474]
[1721328975569,0.002794,63594.0,63593.0,0.15725]
[1721328975789,0.157223,63604.0,63598.0,0.471712]
[1721328975790,0.002794,63599.0,63598.0,0.471712]
[1721328976013,0.002794,63603.0,63598.0,0.15438174]
[1721328976296,0.0646,63605.0,63600.0,0.314462]
[1721328976297,0.002794,63604.0,63600.0,0.314462]
[1721328976497,0.002794,63604.0,63603.0,0.31445]
[1721328976715,0.002794,63604.0,63603.0,0.62605674]
[1721328976932,0.002794,63607.0,63606.0,0.157217]
[1721328977147,0.0616,63609.0,63607.0,0.471645]
[1721328977148,0.002794,63608.0,63607.0,0.471645]
[1721328977374,0.14333,63613.0,63608.0,0.157212]
[1721328977601,0.159997,63612.0,63608.0,0.157212]
[1721328977809,0.002794,63612.0,63611.0,0.157205]
[1721328978022,0.14333,63613.0,63611.0,0.15438174]
[1721328978237,0.002794,63612.0,63611.0,0.15438174]
[1721328978450,0.002794,63612.0,63611.0,0.62599774]
[1721328979540,0.002794,63612.0,63611.0,0.15438174]
[1721328979753,0.14333,63613.0,63612.0,0.157203]
[1721328979987,0.14333,63613.0,63612.0,0.786015]
[1721328979988,0.06243,63613.0,63612.0,0.786015]
[1721328980197,0.00083,63613.0,63612.0,0.786015]
[1721328980411,0.00083,63613.0,63612.0,0.94039674]
[1721328981342,0.00083,63613.0,63612.0,0.94839674]
[1721328981994,0.00083,63613.0,63612.0,0.95639674]
[1721328984498,0.00083,63613.0,63612.0,0.96472674]
[1721328984944,0.00083,63613.0,63612.0,0.65032074]
[1721328985160,0.00083,63613.0,63612.0,0.487609]
[1721328985789,0.00083,63613.0,63612.0,0.802015]
[1721328986220,0.00083,63613.0,63612.0,0.487609]
[1721328986436,0.00083,63613.0,63612.0,0.173203]
[1721328986663,0.06693,63613.0,63612.0,0.173203]
[1721328987077,0.07176773,63613.0,63612.0,0.487609]
[1721328988184,0.07176773,63613.0,63612.0,0.173203]
[1721328989935,0.07176773,63613.0,63612.0,0.487609]
[1721328994339,0.00566773,63613.0,63612.0,0.487609]
[1721328994827,0.00083,63613.0,63612.0,0.487609]
[1721328995296,0.00083,63613.0,63612.0,2.16666485]
[1721328995523,0.00083,63613.0,63612.0,2.19822485]
[1721328996000,0.00083,63613.0,63612.0,2.19021931]
[1721328996255,0.00083,63613.0,63612.0,2.23221931]
[1721328996503,0.00083,63613.0,63612.0,2.24821931]
[1721328997251,0.00083,63613.0,63612.0,2.11766874]
[1721328997479,0.00083,63613.0,63612.0,2.24821569]
[1721328997745,0.00083,63613.0,63612.0,2.10966874]
[1721328997965,0.00083,63613.0,63612.0,2.19621115]
[1721328998203,0.00083,63613.0,63612.0,2.07966874]
[1721328998424,0.00083,63613.0,63612.0,2.21021451]
[1721328998652,0.00083,63613.0,63612.0,2.22421451]
[1721328998908,0.00083,63613.0,63612.0,2.19621451]
[1721328999158,0.00083,63613.0,63612.0,2.22421451]
[1721328999381,0.00083,63613.0,63612.0,2.27421451]
[1721328999605,0.00083,63613.0,63612.0,2.58861995]
[1721329000496,0.00083,63613.0,63612.0,2.45807474]
[1721329000749,0.00083,63613.0,63612.0,2.58862012]
[1721329001224,0.00083,63613.0,63612.0,2.57462012]
[1721329001448,0.00083,63613.0,63612.0,2.56062012]
[1721329001670,0.00083,63613.0,63612.0,2.54662012]
[1721329001891,0.00083,63613.0,63612.0,2.56062012]
[1721329002114,0.00083,63613.0,63612.0,2.57462012]
[1721329003733,0.00083,63613.0,63612.0,2.44407474]
[1721329003971,0.00083,63613.0,63612.0,2.57460726]
[1721329004957,0.00083,63613.0,63612.0,2.88901326]
[1721329005926,1e-06,63613.0,63612.0,3.08901326]
[1721329006174,0.00833,63624.0,63623.0,0.238735]
[1721329006390,0.00833,63624.0,63623.0,1.49759388]
[1721329006617,0.00833,63624.0,63623.0,2.54064688]
[1721329007103,0.00833,63624.0,63623.0,2.54063458]
[1721329007595,0.00833,63624.0,63623.0,2.55462167]
[1721329007835,0.00833,63624.0,63623.0,2.42411436]
[1721329008057,0.00833,63624.0,63623.0,2.55462164]
[1721329008804,0.00833,63624.0,63623.0,2.54062164]
[1721329009041,0.08550479,63652.0,63640.0,0.05]
[1721329009042,0.002794,63643.0,63640.0,0.05]
[1721329009267,0.0663,63647.0,63646.0,0.157119]
[1721329009554,0.0663,63647.0,63646.0,1.25421474]
[1721329009766,0.0663,63647.0,63646.0,1.27721474]
[1721329010239,0.0785,63650.0,63646.0,1.27721474]
[1721329010491,0.1416,63650.0,63649.0,1.09978]
[1721329010713,0.1416,63650.0,63649.0,1.25416174]
[1721329013421,0.1416,63650.0,63649.0,0.471334]
[1721329013653,0.0644,63649.0,63648.0,0.157114]
[1721329013869,0.0644,63649.0,63648.0,0.471342]
[1721329014378,0.0644,63646.0,63640.0,0.314263]
[1721329014603,0.0644,63646.0,63644.0,0.157123]
[1721329014859,0.002794,63645.0,63642.0,0.471382]
[1721329015103,0.002794,63645.0,63642.0,0.314255]
[1721329015104,0.0609,63644.0,63642.0,0.314255]
[1721329015359,0.0609,63644.0,63636.0,0.314283]
[1721329015360,0.0309,63644.0,63643.0,0.157126]
[1721329015574,0.0309,63644.0,63643.0,0.78563]
[1721329016068,0.0309,63644.0,63643.0,1.25426374]
[1721329017230,0.0309,63644.0,63643.0,1.26426374]
[1721329017671,0.0309,63644.0,63643.0,1.25426374]
[1721329017923,0.0309,63644.0,63643.0,1.27726374]
[1721329018612,0.0309,63644.0,63643.0,1.29126374]
[1721329019079,0.0823,63647.0,63646.0,1.099833]
[1721329019300,0.0823,63647.0,63646.0,1.25421474]
[1721329019528,0.0823,63647.0,63646.0,0.93997674]
[1721329019862,0.0823,63647.0,63646.0,0.31150074]
[1721329019949,0.0823,63647.0,63646.0,0.62573874]
[1721329020173,0.1444,63647.0,63646.0,0.62573874]
[1721329020405,0.62035825,63647.0,63646.0,0.011]
[1721329020628,0.30612525,63647.0,63646.0,0.011]
[1721329020849,0.14900925,63647.0,63646.0,0.011]
[1721329021097,0.14900925,63647.0,63646.0,0.021]
[1721329021305,0.30612525,63647.0,63646.0,0.021]
[1721329021751,0.14900925,63647.0,63646.0,0.011]
[1721329022224,0.30612525,63647.0,63646.0,0.004]
[1721329022465,0.14900925,63647.0,63646.0,0.004]
[1721329022702,0.00460925,63647.0,63646.0,0.31058174]
[1721329022941,0.00833,63652.0,63651.0,0.471319]
[1721329023160,0.00833,63652.0,63651.0,1.45982674]
[1721329023425,0.00833,63652.0,63651.0,2.004507]
[1721329023923,0.00833,63652.0,63651.0,2.054507]
[1721329024164,0.00833,63652.0,63651.0,1.871807]
[1721329024392,0.00833,63663.0,63656.0,1.413846]
[1721329024620,0.00833,63663.0,63656.0,2.004395]
[1721329025126,0.00833,63663.0,63656.0,2.00438527]
[1721329025592,0.00833,63663.0,63656.0,2.0043854]
[1721329025824,0.00833,63663.0,63662.0,1.445275]
[1721329026057,0.00833,63663.0,63662.0,2.1792144]
[1721329026370,0.00833,63663.0,63662.0,2.2292144]
[1721329026982,0.00833,63663.0,63662.0,2.22501341]
[1721329027204,0.00833,63663.0,63662.0,1.39093774]
[1721329027719,0.00833,63663.0,63662.0,1.55963774]
[1721329027949,0.00833,63663.0,63662.0,1.57363774]
[1721329028644,0.00833,63663.0,63662.0,1.87379674]
[1721329028885,0.00833,63663.0,63662.0,1.90535674]
[1721329029128,0.00833,63663.0,63662.0,1.91935674]
[1721329029594,0.00833,63663.0,63662.0,1.90535674]
[1721329029839,0.00833,63663.0,63662.0,2.0498013]
[1721329030118,0.00833,63663.0,63662.0,2.0638013]
[1721329030361,0.00833,63663.0,63662.0,2.0858013]
[1721329030589,0.00833,63663.0,63662.0,2.0998013]
[1721329030818,0.00833,63663.0,63662.0,2.0638013]
[1721329031275,0.00833,63663.0,63662.0,2.0637954]
[1721329033677,0.0228013,63667.0,63665.0,1.463648]
[1721329033967,0.0228013,63667.0,63665.0,1.9030284]
[1721329034215,0.0228013,63667.0,63665.0,1.8530284]
[1721329034449,0.0228013,63667.0,63665.0,1.853017]
[1721329034922,0.0228013,63667.0,63665.0,1.85302171]
[1721329035633,0.0228013,63667.0,63665.0,1.86702171]
[1721329036100,0.0228013,63667.0,63665.0,2.09972171]
[1721329036539,0.0228013,63667.0,63665.0,2.11372171]
[1721329036984,0.0228013,63667.0,63665.0,2.09972171]
[1721329037234,0.0228013,63667.0,63665.0,2.42786571]
[1721329037467,0.0228013,63667.0,63665.0,2.62786571]
[1721329037708,0.0228013,63667.0,63665.0,2.61386023]
[1721329038165,0.0228013,63667.0,63665.0,2.62786023]
[1721329039365,0.00833,63677.0,63671.0,1.445073]
[1721329039615,0.00833,63677.0,63671.0,2.03558123]
[1721329040101,0.00833,63677.0,63671.0,0.90825274]
[1721329040102,0.0627,63672.0,63671.0,0.90825274]
[1721329040368,0.1416,63672.0,63671.0,0.62555274]
[1721329040856,0.1416,63672.0,63671.0,0.95366674]
[1721329041347,0.1416,63672.0,63671.0,0.93966674]
[1721329041624,0.1416,63672.0,63671.0,0.96766674]
[1721329041850,0.1416,63672.0,63671.0,0.95366674]
[1721329042297,0.0627,63672.0,63671.0,1.15036674]
[1721329043517,0.0627,63672.0,63671.0,1.46448074]
[1721329043781,0.0001,63672.0,63671.0,1.48748074]
[1721329044235,0.0001,63672.0,63671.0,1.51904074]
[1721329044465,0.0001,63672.0,63671.0,1.96358306]
[1721329044685,0.0001,63672.0,63671.0,1.64946906]
[1721329044909,0.0001,63672.0,63671.0,1.63546906]
[1721329045123,0.0001,63672.0,63671.0,1.50504074]
[1721329045397,0.0001,63672.0,63671.0,1.6494702]
[1721329045652,0.0001,63672.0,63671.0,1.51904074]
[1721329046112,0.0001,63672.0,63671.0,1.48748074]
[1721329047717,0.0001,63672.0,63671.0,1.60391279]
[1721329047932,0.0001,63672.0,63671.0,1.61791279]
[1721329048601,0.0001,63672.0,63671.0,1.54758074]
[1721329049480,0.0797,63672.0,63671.0,1.54758074]
[1721329049909,0.143,63672.0,63671.0,1.21046674]
[1721329050170,0.143,63672.0,63671.0,1.02776674]
[1721329050430,0.143,63672.0,63671.0,0.0881]
[1721329050673,0.143,63672.0,63671.0,0.028]
[1721329050674,0.614163,63672.0,63671.0,0.028]
[1721329050895,0.928272,63672.0,63671.0,0.028]
[1721329051343,0.928272,63672.0,63671.0,0.014]
[1721329051818,0.928272,63672.0,63671.0,0.024]
[1721329052266,0.928272,63672.0,63664.0,0.157074]
[1721329052267,0.0787,63667.0,63664.0,0.157074]
[1721329052459,0.066994,63666.0,63664.0,0.157074]
[1721329052742,0.0642,63666.0,63664.0,0.157074]
[1721329052979,0.0642,63666.0,63661.0,0.377073]
[1721329053223,0.002794,63665.0,63663.0,0.157076]
[1721329053454,0.0642,63666.0,63663.0,0.31145774]
[1721329054149,0.0642,63666.0,63661.0,0.062912]
[1721329054396,0.787854,63665.0,63664.0,0.005]
[1721329054629,0.787854,63665.0,63664.0,0.011]
[1721329054630,1.099504,63665.0,63664.0,0.011]
[1721329054855,1.242904,63665.0,63664.0,0.006]
[1721329055090,0.314185,63657.0,63654.0,0.0006]
[1721329055332,0.145294,63656.0,63653.0,0.04918476]
[1721329055590,0.145294,63656.0,63648.0,0.062925]
[1721329055591,0.471334,63649.0,63648.0,0.062925]
[1721329055814,0.471334,63649.0,63644.0,0.157121]
[1721329055815,0.157114,63648.0,63644.0,0.157121]